fUST/lending_fUST_20240818
["ID","MTS","AMOUNT","RATE_DAILY","PERIOD"]
[335178191,1723937438499,-455.062982,0.0002022,2]
[335178192,1723937438509,-283.382786,0.0002022,2]
[335178193,1723937438518,-100.67515477,0.0002022,2]
[335178315,1723937528308,151.81338948,0.00014247,2]
[335178316,1723937528420,163.21744052,0.00014247,2]
[335178320,1723937645077,154.91162192,0.00014519,2]
[335178331,1723938088131,154.68290005,0.00014519,2]
[335178332,1723938094051,448.06710199,0.00014519,2]
[335178333,1723938097523,182.91834322,0.00014519,2]
[335178334,1723938109255,174.75672236,0.00014519,2]
[335178335,1723938111611,1500.0,0.00014519,2]
[335178336,1723938123247,534.52389159,0.00014519,2]
[335178339,1723938201593,154.83734357,0.00014519,2]
[335178344,1723938284262,160.16095655,0.00014519,2]
[335178346,1723938335100,-191.95034667,0.00017498,2]
[335178347,1723938335127,-240.74853049,0.00017598,2]
[335178348,1723938335154,-154.68290005,0.00017598,2]
[335178349,1723938335178,-701.26360058,0.00018484,2]
[335178352,1723938405124,-150.14190704,0.00017498,2]
[335178353,1723938424447,212.87252483,0.00015001,2]
[335178354,1723938427081,-420.62670068,0.00017498,2]
[335178355,1723938427101,-154.98114919,0.00017533,2]
[335178356,1723938427121,-678.1731368,0.00018444,2]
[335178357,1723938427141,-554.4753863,0.00018484,2]
[335178358,1723938431104,-201.040277,0.00018278,2]
[335178359,1723938431126,-452.61550126,0.00018484,2]
[335178361,1723938433135,-2837.1087869,0.00018484,2]
[335178362,1723938438199,-919.59594569,0.00018484,2]
[335178363,1723938454139,-313.91151072,0.00018484,2]
[335178366,1723938497363,317.391039,0.00014247,2]
[335178367,1723938502866,800.28372328,0.00014519,2]
[335178368,1723938515189,813.2456491,0.00014519,2]
[335178372,1723938559107,-154.71377951,0.00017598,2]
[335178672,1723938638220,-705.39167507,0.00018342,2]
[335178840,1723938640580,-1441.30189513,0.00018342,2]
[335178842,1723938640590,-182.6981643,0.00018403,2]
[335178844,1723938640599,-159.519349,0.00018765,2]
[335178846,1723938640608,-1526.43802233,0.00018834,2]
[335178864,1723938640775,-2901.60618095,0.00018834,2]
[335178866,1723938640784,-159.519349,0.00018846,2]
[335178868,1723938640793,-159.519349,0.00018928,2]
[335178870,1723938640803,-4428.04420328,0.00018963,2]
[335178872,1723938640811,-159.519349,0.00019009,2]
[335178874,1723938640821,-159.519349,0.00019091,2]
[335178876,1723938640831,-300.0,0.00019101,2]
[335178878,1723938640840,-159.519349,0.00019172,2]
[335178879,1723938640849,-166.580958,0.00019178,2]
[335178881,1723938640858,-4428.04420328,0.00019246,2]
[335178883,1723938640867,-159.519349,0.00019254,2]
[335178885,1723938640877,-159.519349,0.00019335,2]
[335178887,1723938640887,-159.519349,0.00019417,2]
[335178889,1723938640896,-159.519349,0.00019498,2]
[335178891,1723938640906,-151.0,0.00019509,2]
[335178893,1723938640917,-235.841611,0.00019537,2]
[335178895,1723938640927,-235.841611,0.00019537,2]
[335178897,1723938640937,-159.519349,0.0001958,2]
[335178899,1723938640948,-4428.04420328,0.00019637,2]
[335178901,1723938640958,-239.62407788,0.00019655,2]
[335178903,1723938640969,-159.519349,0.00019661,2]
[335178905,1723938640979,-159.519349,0.00019743,2]
[335178907,1723938640989,-4428.04420332,0.00019755,2]
[335178909,1723938641000,-151.0,0.0001985,2]
[335178911,1723938641010,-235.841611,0.00019989,2]
[335178913,1723938641019,-235.841611,0.00019989,2]
[335178915,1723938641028,-156.6016576,0.0002,2]
[335178916,1723938641038,-2856.19831008,0.0002012,2]
[335178918,1723938641047,-151.0,0.0002012,2]
[335178920,1723938641057,-154.68290005,0.00020199,2]
[335178922,1723938641066,-500.0,0.00020209,2]
[335178924,1723938641075,-241.07456009,0.00020209,2]
[335178926,1723938641085,-500.0,0.00020209,2]
[335178928,1723938641097,-500.0,0.00020209,2]
[335178930,1723938641108,-422.70049568,0.00020209,2]
[335178932,1723938641119,-500.0,0.00020209,2]
[335178934,1723938641129,-500.0,0.00020209,2]
[335178936,1723938641140,-500.0,0.00020209,2]
[335178938,1723938641149,-500.0,0.00020209,2]
[335178940,1723938641159,-500.0,0.00020209,2]
[335178942,1723938641170,-235.841611,0.0002021,2]
[335178944,1723938641179,-235.841611,0.0002021,2]
[335178946,1723938641189,-36383.9071795,0.0002021,2]
[335178948,1723938641200,-151.0,0.0002021,2]
[335178951,1723938641210,-180.43,0.0002021,3]
[335178953,1723938641220,-235.841611,0.00020219,2]
[335178955,1723938641230,-235.841611,0.00020219,2]
[335178957,1723938641240,-154.89911116,0.00020219,2]
[335178959,1723938641250,-126439.75871165,0.0002022,2]
[335178961,1723938641259,-10506.43940705,0.0002022,2]
[335178963,1723938641269,-171.93990209,0.0002022,2]
[335178965,1723938641279,-235.841611,0.0002022,2]
[335178967,1723938641290,-235.841611,0.0002022,2]
[335178969,1723938641299,-235.841611,0.0002022,2]
[335178971,1723938641309,-235.841611,0.0002022,2]
[335178973,1723938641319,-151.0,0.0002022,2]
[335178975,1723938641328,-151.0,0.0002022,2]
[335178977,1723938641339,-203.60517816,0.00020229,2]
[335178979,1723938641348,-5991.61957051,0.00020229,2]
[335178981,1723938641358,-151.0,0.00020229,2]
[335178983,1723938641367,-235.841611,0.0002029,2]
[335178985,1723938641378,-235.841611,0.0002029,2]
[335178987,1723938641389,-317.391039,0.00020707,2]
[335178989,1723938641398,-420.0,0.00021011,2]
[335178991,1723938641407,-187.253628,0.00021918,2]
[335178993,1723938641417,-187.253628,0.00021918,2]
[335178995,1723938641426,-187.253628,0.00021918,2]
[335178997,1723938641436,-187.253628,0.00021918,2]
[335178999,1723938641445,-187.253628,0.00021918,2]
[335179001,1723938641454,-187.253628,0.00021918,2]
[335179003,1723938641463,-187.253628,0.00021918,2]
[335179005,1723938641473,-187.253628,0.00021918,2]
[335179007,1723938641483,-187.253628,0.00021918,2]
[335179009,1723938641492,-187.253628,0.00021918,2]
[335179011,1723938641501,-187.253628,0.00021918,2]
[335179013,1723938641511,-187.253628,0.00021918,2]
[335179015,1723938641520,-187.253628,0.00021918,2]
[335179017,1723938641529,-187.253628,0.00021918,2]
[335179019,1723938641540,-500.0,0.00021918,2]
[335179021,1723938641549,-399.14741743,0.00021918,2]
[335179023,1723938641558,-151.0,0.00021918,7]
[335179025,1723938641568,-187.253628,0.00022,7]
[335179028,1723938641577,-187.253628,0.00022,7]
[335179030,1723938641587,-235.841611,0.00022223,2]
[335179040,1723938641674,-235.841611,0.00022223,2]
[335179042,1723938641683,-2856.19831008,0.00022239,2]
[335179044,1723938641693,-151.0,0.0002254,7]
[335179046,1723938641703,-18191.9535898,0.0002269,3]
[335179048,1723938641712,-187.253628,0.0002269,7]
[335179050,1723938641722,-187.253628,0.0002269,7]
[335179052,1723938641732,-603.0,0.000227,2]
[335179054,1723938641742,-587.0,0.00023112,2]
[335179057,1723938641752,-10339.94871612,0.00023214,2]
[335179059,1723938641762,-187.253628,0.00023221,7]
[335179061,1723938641772,-187.253636,0.00023221,7]
[335179063,1723938641781,-151.0,0.00023264,7]
[335179065,1723938641791,-235.841611,0.00023282,2]
[335179067,1723938641801,-235.841611,0.00023282,2]
[335179069,1723938641812,-285.31252066,0.00023502,2]
[335179071,1723938641823,-154.80649189,0.00023515,2]
[335179073,1723938641835,-435.0,0.00023597,2]
[335179075,1723938641844,-435.0,0.00023597,2]
[335179078,1723938641856,-5243.39070357,0.00023892,2]
[335179080,1723938641866,-3000.0,0.000239,2]
[335179082,1723938641878,-235.841611,0.000239,2]
[335179084,1723938641888,-235.841604,0.000239,2]
[335179086,1723938641897,-151.0,0.000239,7]
[335179088,1723938641907,-3000.0,0.0002391,2]
[335179090,1723938641916,-3000.0,0.0002392,2]
[335179092,1723938641925,-257.33,0.0002392,120]
[335179094,1723938641934,-270.7098517,0.00023922,2]
[335179096,1723938641943,-3000.0,0.0002393,2]
[335179098,1723938641953,-150.5,0.0002393,120]
[335179100,1723938641963,-3000.0,0.0002394,2]
[335179102,1723938641972,-150.5,0.0002394,120]
[335179104,1723938641981,-3000.0,0.0002395,2]
[335179106,1723938641990,-3000.0,0.0002396,2]
[335179108,1723938641999,-1880.64905016,0.0002397,2]
[335179232,1723938643237,-168.18120246,0.00023211,2]
[335179234,1723938643250,-10171.76751366,0.00023211,2]
[335179236,1723938643262,-1129.36013884,0.0002397,2]
[335179238,1723938643272,-1110.60501038,0.00024021,2]
[335179240,1723938643282,-882.69740535,0.00024099,2]
[335179242,1723938643293,-1069.1388639,0.00024105,3]
[335179252,1723938643370,-3863.1,0.00024105,3]
[335179254,1723938643382,-2025.85273131,0.00024105,3]
[335179545,1723938646204,-691.02362734,0.00024105,3]
[335179764,1723938709753,71.72325847,0.00014519,2]
[335179765,1723938709776,245.0,0.00014519,2]
[335179766,1723938709807,1849.04640609,0.00014519,2]
[335179767,1723938784291,189.2101249,0.00014519,2]
[335179768,1723938802752,1061.67480035,0.00014519,2]
[335179774,1723938957391,185.535364,0.00014247,2]
[335179778,1723939101368,857.0768813,0.00014519,2]
[335179779,1723939102477,319.12588046,0.00014519,2]
[335179780,1723939104614,412.72601555,0.00014519,2]
[335179788,1723939557145,-983.35987528,0.00017025,2]
[335179789,1723939557166,-651.40431833,0.00017059,2]
[335179790,1723939627114,-154.80649189,0.00017259,2]
[335179791,1723939627138,-156.6016576,0.0002,2]
[335179792,1723939627160,-189.4897494,0.00021747,2]
[335179793,1723939627182,-157.748074,0.00022108,2]
[335179794,1723939627202,-31.1838992,0.0002218,2]
[335179795,1723939629098,-1265.3071968,0.0002218,2]
[335179796,1723939629127,-216.04924,0.00022199,2]
[335179797,1723939629152,-157.748074,0.00022213,2]
[335179798,1723939629175,-157.748074,0.00022318,2]
[335179799,1723939629199,-147.32474212,0.00022423,2]
[335179800,1723939636136,-10.42333188,0.00022423,2]
[335179801,1723939636158,-157.748074,0.00022527,2]
[335179802,1723939636180,-157.748074,0.00022632,2]
[335179803,1723939636201,-157.748074,0.00022737,2]
[335179804,1723939636226,-157.748074,0.00022842,2]
[335179805,1723939636247,-157.748074,0.00022946,2]
[335179806,1723939636268,-904.0,0.00023,2]
[335179807,1723939636290,-157.748074,0.00023051,2]
[335179808,1723939636313,-157.748074,0.00023156,2]
[335179809,1723939636334,-97.03451793,0.00023261,2]
[335179810,1723939643126,-60.71355607,0.00023261,2]
[335179811,1723939643147,-166.137291,0.00023383,2]
[335179812,1723939643169,-300.0,0.00023565,2]
[335179813,1723939643189,-380.46194334,0.00023566,2]
[335179814,1723939643537,294.928703,0.00014247,2]
[335179815,1723939811401,169.33137208,0.00015001,2]
[335179853,1723939832251,-294.928703,0.00020707,2]
[335179855,1723939832262,-123.96442781,0.00022323,2]
[335180361,1723939838212,-1259.41545977,0.00022323,2]
[335180367,1723939838266,-1807.13748731,0.00022323,2]
[335180368,1723939838278,-300.0,0.00022412,2]
[335180369,1723939838288,-500.0,0.00022412,2]
[335180370,1723939838302,-139.46855667,0.00022412,2]
[335180417,1723939840495,-360.53144333,0.00022412,2]
[335180419,1723939840505,-418.24671882,0.00022412,2]
[335180424,1723939840549,-81.75328118,0.00022412,2]
[335180425,1723939840558,-388.20957659,0.00022412,2]
[335180427,1723939840567,-1118.96591954,0.00022413,3]
[335180429,1723939840578,-1156.5,0.00022413,3]
[335180432,1723939840605,-14351.26974686,0.00022413,3]
[335180434,1723939840615,-168.75219206,0.00022422,2]
[335180436,1723939840624,-500.0,0.00022422,2]
[335180438,1723939840633,-595.89034697,0.00022422,2]
[335180440,1723939840642,-500.0,0.00022422,2]
[335180442,1723939840652,-500.0,0.00022422,2]
[335180444,1723939840661,-500.0,0.00022422,2]
[335180445,1723939840670,-500.0,0.00022422,2]
[335180447,1723939840680,-500.0,0.00022422,2]
[335180449,1723939840689,-119355.14935166,0.00022423,2]
[335180638,1723939843381,-1246.72017249,0.00022423,2]
[335180806,1723939846380,-542.79084811,0.00022423,2]
[335180809,1723939846392,-3070.0000003,0.00022423,2]
[335180837,1723939855208,37.44268643,0.00017269,2]
[335180838,1723939855229,245.0,0.00017269,2]
[335180841,1723939920671,242.5113366,0.00015001,2]
[335180842,1723939920822,9757.4886634,0.00015001,2]
[335180843,1723939937537,10000.0,0.00015001,2]
[335180844,1723939963268,10000.0,0.00015001,2]
[335180845,1723939965018,2281.22061085,0.00014519,3]
[335180846,1723939987009,2671.64,0.00015001,2]
[335180847,1723940033672,1330.68424841,0.00014519,2]
[335180848,1723940120810,5526.90170772,0.00014245,2]
[335180849,1723940143352,169.5494177,0.00014247,2]
[335180859,1723940640359,265.435832,0.00014247,2]
[335180861,1723940758263,-194.19211654,0.00017169,2]
[335180862,1723940758284,-1656.49562405,0.00017269,2]
[335180863,1723940787742,305.18657656,0.00014247,2]
[335180866,1723940827123,-257.74694762,0.000205,2]
[335180867,1723940830096,-1837.75769474,0.000205,2]
[335180868,1723940832104,-918.0391801,0.000205,2]
[335180869,1723940839114,-549.65030323,0.00017269,2]
[335180870,1723940847156,-634.78099701,0.00017269,2]
[335180871,1723940847177,-2687.33668036,0.000205,2]
[335180872,1723940847198,-265.435832,0.00020707,2]
[335180873,1723940847218,-302.42545213,0.00022,2]
[335180874,1723940847239,-372.0,0.00022,2]
[335180875,1723940847352,-293.8030492,0.00022,2]
[335180876,1723940847375,-250.0000009,0.00022141,2]
[335180877,1723940847403,-66.55181703,0.00022163,2]
[335180895,1723940950180,-210.99393726,0.000176,2]
[335180910,1723941032451,-166.137291,0.00021098,2]
[335180911,1723941032460,-1827.80926077,0.00021107,2]
[335180946,1723941038447,-1810.89357123,0.00021107,2]
[335180949,1723941038457,-1074.477175,0.00021332,2]
[335180951,1723941038466,-169.31475,0.00021407,2]
[335180953,1723941038475,-300.0,0.00022162,2]
[335180955,1723941038485,-10506.43940705,0.00022163,2]
[335180957,1723941038495,-372.0,0.00022192,2]
[335180959,1723941038504,-1313.38444652,0.000223,2]
[335180961,1723941038513,-500.0,0.00022418,2]
[335180963,1723941038522,-500.0,0.00022418,2]
[335180965,1723941038531,-500.0,0.00022418,2]
[335180967,1723941038541,-500.0,0.00022418,2]
[335180969,1723941038550,-517.12324288,0.00022418,2]
[335180971,1723941038559,-500.0,0.00022418,2]
[335180973,1723941038568,-494.29737468,0.00022418,2]
[335180975,1723941038577,-500.0,0.00022418,2]
[335180977,1723941038586,-538.80347896,0.00022418,2]
[335180980,1723941038595,-63375.34219535,0.00022419,2]
[335180983,1723941038605,-948.51,0.00022422,2]
[335180984,1723941038614,-504.46899231,0.00022422,2]
[335180987,1723941038623,-500.0,0.00022422,2]
[335180988,1723941038632,-500.0,0.00022422,2]
[335180991,1723941038641,-639.3,0.00022422,2]
[335180994,1723941038650,-501.15714507,0.00022422,2]
[335180997,1723941038659,-500.0,0.00022422,2]
[335180999,1723941038668,-674.5,0.00022422,2]
[335181003,1723941038687,-500.0,0.00022422,2]
[335181005,1723941038698,-502.05464119,0.00022422,2]
[335181007,1723941038707,-502.34974926,0.00022422,2]
[335181009,1723941038717,-500.0,0.00022422,2]
[335181010,1723941038727,-500.0,0.00022422,2]
[335181011,1723941038737,-500.0,0.00022422,2]
[335181012,1723941038747,-500.0,0.00022422,2]
[335181013,1723941038756,-844.35,0.00022422,2]
[335181014,1723941038765,-731.34,0.00022422,2]
[335181015,1723941038776,-500.0,0.00022422,2]
[335181016,1723941038785,-500.0,0.00022422,2]
[335181017,1723941038795,-500.0,0.00022422,2]
[335181018,1723941038804,-500.0,0.00022422,2]
[335181019,1723941038814,-500.0,0.00022422,2]
[335181020,1723941038827,-500.0,0.00022422,2]
[335181021,1723941038836,-500.0,0.00022422,2]
[335181022,1723941038846,-500.0,0.00022422,2]
[335181023,1723941038856,-504.58085367,0.00022422,2]
[335181024,1723941038868,-500.0,0.00022422,2]
[335181025,1723941038994,-500.0,0.00022422,2]
[335181026,1723941039003,-500.0,0.00022422,2]
[335181027,1723941039013,-500.0,0.00022422,2]
[335181028,1723941039022,-500.0,0.00022422,2]
[335181029,1723941039032,-551.19,0.00022422,2]
[335181030,1723941039042,-500.0,0.00022422,2]
[335181031,1723941039052,-767.54,0.00022422,2]
[335181032,1723941039062,-500.0,0.00022422,2]
[335181033,1723941039072,-500.0,0.00022422,2]
[335181034,1723941039081,-760.16,0.00022422,2]
[335181035,1723941039090,-500.0,0.00022422,2]
[335181036,1723941039099,-500.0,0.00022422,2]
[335181037,1723941039109,-500.0,0.00022422,2]
[335181038,1723941039118,-500.0,0.00022422,2]
[335181039,1723941039127,-500.0,0.00022422,2]
[335181040,1723941039137,-500.0,0.00022422,2]
[335181041,1723941039147,-500.0,0.00022422,2]
[335181042,1723941039157,-500.0,0.00022422,2]
[335181043,1723941039167,-500.0,0.00022422,2]
[335181044,1723941039176,-507.07,0.00022422,2]
[335181045,1723941039185,-623.76,0.00022422,2]
[335181046,1723941039194,-500.0,0.00022422,2]
[335181047,1723941039203,-511.43444386,0.00022422,2]
[335181048,1723941039213,-524.43,0.00022422,2]
[335181049,1723941039222,-503.1563664,0.00022422,2]
[335181050,1723941039233,-503.3234106,0.00022422,2]
[335181051,1723941039242,-1266.84,0.00022422,2]
[335181052,1723941039251,-992.84,0.00022422,2]
[335181053,1723941039260,-500.0,0.00022422,2]
[335181054,1723941039270,-500.0,0.00022422,2]
[335181055,1723941039280,-500.0,0.00022422,2]
[335181056,1723941039289,-687.71,0.00022422,2]
[335181057,1723941039298,-500.0,0.00022422,2]
[335181058,1723941039307,-677.96,0.00022422,2]
[335181059,1723941039316,-500.0,0.00022422,2]
[335181060,1723941039325,-8336.52,0.00022422,2]
[335181061,1723941039334,-500.0,0.00022422,2]
[335181062,1723941039343,-613.95,0.00022422,2]
[335181063,1723941039352,-2968.89,0.00022422,2]
[335181064,1723941039362,-1348.82,0.00022422,2]
[335181065,1723941039371,-906.5,0.00022422,2]
[335181066,1723941039380,-500.0,0.00022422,2]
[335181067,1723941039390,-844.6,0.00022422,2]
[335181068,1723941039399,-2000.42,0.00022422,2]
[335181069,1723941039409,-2163.52,0.00022422,2]
[335181070,1723941039418,-500.0,0.00022422,2]
[335181071,1723941039427,-2075.03,0.00022422,2]
[335181072,1723941039436,-500.0,0.00022422,2]
[335181073,1723941039446,-500.0,0.00022422,2]
[335181074,1723941039456,-500.0,0.00022422,2]
[335181075,1723941039465,-500.0,0.00022422,2]
[335181076,1723941039474,-500.0,0.00022422,2]
[335181077,1723941039487,-10570.91,0.00022422,2]
[335181078,1723941039497,-926.37,0.00022422,2]
[335181079,1723941039506,-500.0,0.00022422,2]
[335181080,1723941039516,-507.60752672,0.00022422,2]
[335181081,1723941039526,-500.0,0.00022422,2]
[335181082,1723941039536,-500.0,0.00022422,2]
[335181083,1723941039546,-500.0,0.00022422,2]
[335181084,1723941039557,-2225.09833909,0.00022423,2]
[335181085,1723941039567,-500.0,0.00022692,2]
[335181086,1723941039576,-500.0,0.00022692,2]
[335181087,1723941039586,-948.51,0.00022696,2]
[335181088,1723941039596,-500.0,0.00022696,2]
[335181089,1723941039606,-500.0,0.00022696,2]
[335181090,1723941039615,-639.3,0.00022696,2]
[335181091,1723941039625,-500.0,0.00022696,2]
[335181092,1723941039634,-674.5,0.00022696,2]
[335181093,1723941039644,-500.0,0.00022696,2]
[335181094,1723941039653,-500.0,0.00022696,2]
[335181095,1723941039664,-500.0,0.00022696,2]
[335181096,1723941039674,-500.0,0.00022696,2]
[335181097,1723941039683,-500.0,0.00022696,2]
[335181098,1723941039693,-844.35,0.00022696,2]
[335181099,1723941039703,-731.34,0.00022696,2]
[335181100,1723941039712,-500.0,0.00022696,2]
[335181101,1723941039721,-500.0,0.00022696,2]
[335181102,1723941039732,-500.0,0.00022696,2]
[335181103,1723941039741,-500.0,0.00022696,2]
[335181104,1723941039751,-500.0,0.00022696,2]
[335181105,1723941039760,-500.0,0.00022696,2]
[335181106,1723941039770,-500.0,0.00022696,2]
[335181107,1723941039780,-500.0,0.00022696,2]
[335181108,1723941039790,-500.0,0.00022696,2]
[335181109,1723941039801,-500.0,0.00022696,2]
[335181110,1723941039811,-500.0,0.00022696,2]
[335181111,1723941039821,-500.0,0.00022696,2]
[335181112,1723941039831,-500.0,0.00022696,2]
[335181113,1723941039840,-551.19,0.00022696,2]
[335181114,1723941039851,-375.8910051,0.00022696,2]
[335181115,1723941039864,-767.54,0.00022696,2]
[335181116,1723941039874,-558.14271637,0.00022696,2]
[335181117,1723941039884,-500.0,0.00022696,2]
[335181118,1723941039894,-760.16,0.00022696,2]
[335181119,1723941039904,-500.0,0.00022696,2]
[335181120,1723941039914,-500.0,0.00022696,2]
[335181121,1723941039925,-500.0,0.00022696,2]
[335181122,1723941039935,-500.0,0.00022696,2]
[335181123,1723941039946,-500.0,0.00022696,2]
[335181124,1723941039956,-507.07,0.00022696,2]
[335181125,1723941039967,-623.76,0.00022696,2]
[335181126,1723941039978,-500.0,0.00022696,2]
[335181127,1723941039988,-524.43,0.00022696,2]
[335181128,1723941039997,-1266.84,0.00022696,2]
[335181129,1723941040007,-992.84,0.00022696,2]
[335181130,1723941040018,-500.0,0.00022696,2]
[335181131,1723941040028,-500.0,0.00022696,2]
[335181132,1723941040038,-500.0,0.00022696,2]
[335181133,1723941040048,-687.71,0.00022696,2]
[335181134,1723941040057,-500.0,0.00022696,2]
[335181135,1723941040067,-677.96,0.00022696,2]
[335181136,1723941040145,-500.0,0.00022696,2]
[335181137,1723941040155,-8336.52,0.00022696,2]
[335181138,1723941040164,-500.0,0.00022696,2]
[335181139,1723941040173,-613.95,0.00022696,2]
[335181140,1723941040183,-2968.89,0.00022696,2]
[335181141,1723941040192,-1348.82,0.00022696,2]
[335181142,1723941040201,-906.5,0.00022696,2]
[335181143,1723941040210,-500.0,0.00022696,2]
[335181144,1723941040220,-844.6,0.00022696,2]
[335181145,1723941040230,-2000.42,0.00022696,2]
[335181146,1723941040239,-2163.52,0.00022696,2]
[335181147,1723941040248,-476.54341279,0.00022696,2]
[335181148,1723941040258,-2075.03,0.00022696,2]
[335181149,1723941040267,-500.0,0.00022696,2]
[335181150,1723941040276,-500.0,0.00022696,2]
[335181151,1723941040286,-500.0,0.00022696,2]
[335181152,1723941040295,-465.54390002,0.00022696,2]
[335181154,1723941040305,-500.0,0.00022696,2]
[335181155,1723941040315,-926.37,0.00022696,2]
[335181156,1723941040324,-500.0,0.00022696,2]
[335181157,1723941040334,-500.0,0.00022696,2]
[335181158,1723941040345,-500.0,0.00022696,2]
[335181159,1723941040356,-4626.22564671,0.00022859,2]
[335181161,1723941040366,-16910.1005392,0.00022959,3]
[335181163,1723941040375,-16910.1005392,0.0002296,3]
[335181165,1723941040384,-500.0,0.00022966,2]
[335181167,1723941040393,-500.0,0.00022966,2]
[335181168,1723941040402,-10570.91,0.00022968,2]
[335181169,1723941040412,-500.0,0.00022969,2]
[335181171,1723941040422,-1153.0,0.00022969,2]
[335181172,1723941040431,-1526.09,0.00022969,2]
[335181173,1723941040441,-500.0,0.00022969,2]
[335181174,1723941040450,-1336.81,0.00022969,2]
[335181175,1723941040459,-500.0,0.00022969,2]
[335181176,1723941040469,-500.0,0.00022969,2]
[335181177,1723941040479,-1277.17,0.00022969,2]
[335181178,1723941040488,-4887.13,0.00022969,2]
[335181179,1723941040497,-937.5,0.00022969,2]
[335181180,1723941040507,-1360.89,0.00022969,2]
[335181181,1723941040515,-500.0,0.00022969,2]
[335181182,1723941040525,-623.03,0.00022969,2]
[335181183,1723941040534,-1183.8,0.00022969,2]
[335181184,1723941040543,-500.0,0.00022969,2]
[335181185,1723941040553,-500.0,0.00022969,2]
[335181186,1723941040562,-500.0,0.00022969,2]
[335181187,1723941040571,-500.0,0.00022969,2]
[335181188,1723941040580,-1577.35,0.00022969,2]
[335181189,1723941040590,-2185.17,0.00022969,2]
[335181190,1723941040599,-500.0,0.00022969,2]
[335181191,1723941040609,-500.0,0.00022969,2]
[335181192,1723941040618,-500.0,0.00022969,2]
[335181193,1723941040627,-500.0,0.00022969,2]
[335181194,1723941040637,-500.0,0.00022969,2]
[335181195,1723941040646,-678.97,0.00022969,2]
[335181196,1723941040655,-1201.24,0.00022969,2]
[335181197,1723941040665,-1057.53,0.00022969,2]
[335181198,1723941040674,-500.0,0.00022969,2]
[335181199,1723941040684,-848.95,0.00022969,2]
[335181200,1723941040693,-500.0,0.00022969,2]
[335181201,1723941040703,-500.0,0.00022969,2]
[335181202,1723941040712,-686.45,0.00022969,2]
[335181203,1723941040721,-500.0,0.00022969,2]
[335181204,1723941040731,-500.0,0.00022969,2]
[335181205,1723941040740,-500.0,0.00022969,2]
[335181206,1723941040750,-500.0,0.00022969,2]
[335181207,1723941040759,-947.08,0.00022969,2]
[335181208,1723941040768,-500.0,0.00022969,2]
[335181209,1723941040777,-710.14,0.00022969,2]
[335181210,1723941040786,-500.0,0.00022969,2]
[335181211,1723941040796,-500.0,0.00022969,2]
[335181212,1723941040805,-732.54,0.00022969,2]
[335181213,1723941040823,-500.0,0.00022969,2]
[335181214,1723941040834,-10570.91,0.00022969,2]
[335181215,1723941040844,-500.0,0.00022969,2]
[335181216,1723941040855,-500.0,0.00022969,2]
[335181217,1723941040868,-948.51,0.0002297,2]
[335181218,1723941040878,-500.0,0.0002297,2]
[335181219,1723941040888,-500.0,0.0002297,2]
[335181220,1723941040899,-639.3,0.0002297,2]
[335181221,1723941040908,-500.0,0.0002297,2]
[335181222,1723941040918,-674.5,0.0002297,2]
[335181223,1723941040928,-500.0,0.0002297,2]
[335181224,1723941040938,-500.0,0.0002297,2]
[335181225,1723941040948,-500.0,0.0002297,2]
[335181226,1723941040957,-500.0,0.0002297,2]
[335181227,1723941040967,-500.0,0.0002297,2]
[335181228,1723941040978,-844.35,0.0002297,2]